fUSD/lending_fUSD_20240119
["ID","MTS","AMOUNT","RATE_DAILY","PERIOD"]
[312162325,1705674658553,-500.0,0.00022465,2]
[312162326,1705674658562,-500.0,0.00022465,2]
[312162327,1705674658573,-733.43,0.00022465,2]
[312162328,1705674658582,-500.0,0.00022465,2]
[312162329,1705674658592,-894.89,0.00022465,2]
[312162330,1705674658602,-640.01,0.00022465,2]
[312162331,1705674658611,-500.0,0.00022465,2]
[312162332,1705674658621,-500.0,0.00022465,2]
[312162333,1705674658634,-803.93,0.00022465,2]
[312162334,1705674658643,-1124.29,0.00022465,2]
[312162335,1705674658653,-500.0,0.00022465,2]
[312162336,1705674658663,-500.0,0.00022465,2]
[312162337,1705674658674,-500.0,0.00022465,2]
[312162338,1705674658684,-500.0,0.00022465,2]
[312162339,1705674658693,-500.0,0.00022465,2]
[312162340,1705674658703,-500.0,0.00022465,2]
[312162341,1705674658713,-555.71,0.00022465,2]
[312162342,1705674658723,-500.0,0.00022465,2]
[312162343,1705674658733,-557.11,0.00022465,2]
[312162344,1705674658742,-518.9,0.00022465,2]
[312162345,1705674658752,-500.0,0.00022465,2]
[312162346,1705674658761,-1239.37,0.00022465,2]
[312162347,1705674658771,-500.0,0.00022465,2]
[312162348,1705674658781,-500.0,0.00022465,2]
[312162349,1705674658790,-500.0,0.00022465,2]
[312162350,1705674658800,-500.0,0.00022465,2]
[312162351,1705674658810,-500.0,0.00022465,2]
[312162352,1705674658820,-500.0,0.00022465,2]
[312162353,1705674658830,-500.0,0.00022465,2]
[312162354,1705674658841,-500.0,0.00022465,2]
[312162355,1705674658851,-500.0,0.00022465,2]
[312162356,1705674658861,-500.0,0.00022465,2]
[312162357,1705674658871,-500.0,0.00022465,2]
[312162358,1705674658881,-500.0,0.00022465,2]
[312162359,1705674658892,-500.0,0.00022465,2]
[312162360,1705674658901,-928.59,0.00022465,2]
[312162361,1705674658911,-1265.34,0.00022465,2]
[312162362,1705674658921,-220.3116449,0.00022465,2]
[312162363,1705674658930,-541.16,0.00022465,2]
[312162364,1705674658940,-500.0,0.00022465,2]
[312162365,1705674658949,-500.0,0.00022465,2]
[312162366,1705674658959,-608.78,0.00022465,2]
[312162367,1705674658968,-514.65,0.00022465,2]
[312162368,1705674658978,-552.53,0.00022465,2]
[312162369,1705674658987,-500.0,0.00022465,2]
[312162370,1705674658997,-500.0,0.00022465,2]
[312162371,1705674659006,-500.0,0.00022465,2]
[312162372,1705674659015,-847.01,0.00022465,2]
[312162373,1705674659024,-500.0,0.00022465,2]
[312162374,1705674659033,-500.0,0.00022465,2]
[312162375,1705674659043,-500.0,0.00022465,2]
[312162376,1705674659052,-500.0,0.00022465,2]
[312162377,1705674659062,-535.98,0.00022465,2]
[312162378,1705674659072,-500.0,0.00022465,2]
[312162379,1705674659082,-558.76,0.00022465,2]
[312162380,1705674659092,-500.0,0.00022465,2]
[312162381,1705674659102,-500.0,0.00022465,2]
[312162382,1705674659112,-500.0,0.00022465,2]
[312162383,1705674659122,-886.82,0.00022465,2]
[312162384,1705674659132,-500.0,0.00022465,2]
[312162385,1705674659142,-500.0,0.00022465,2]
[312162386,1705674659152,-869.62,0.00022465,2]
[312162387,1705674659161,-651.62,0.00022465,2]
[312162388,1705674659171,-500.0,0.00022465,2]
[312162389,1705674659181,-500.0,0.00022465,2]
[312162390,1705674659191,-500.0,0.00022465,2]
[312162391,1705674659200,-500.0,0.00022465,2]
[312162392,1705674659210,-766.07,0.00022465,2]
[312162393,1705674659219,-500.0,0.00022465,2]
[312162394,1705674659232,-500.0,0.00022465,2]
[312162395,1705674659242,-506.13,0.00022465,2]
[312162396,1705674659252,-588.85,0.00022465,2]
[312162397,1705674659262,-500.0,0.00022465,2]
[312162398,1705674659272,-500.0,0.00022465,2]
[312162399,1705674659282,-447.39292044,0.00022465,2]
[312162400,1705674659292,-572.98,0.00022465,2]
[312162401,1705674659302,-517.27,0.00022465,2]
[312162402,1705674659312,-715.18,0.00022465,2]
[312162403,1705674659322,-467.53620094,0.00022465,2]
[312162404,1705674659331,-630.94,0.00022465,2]
[312162405,1705674659340,-500.0,0.00022465,2]
[312162406,1705674659349,-500.0,0.00022465,2]
[312162407,1705674659359,-847.73,0.00022465,2]
[312162408,1705674659368,-1237.47,0.00022465,2]
[312162409,1705674659377,-717.44,0.00022465,2]
[312162410,1705674659387,-500.0,0.00022465,2]
[312162411,1705674659397,-500.0,0.00022465,2]
[312162412,1705674659406,-512.98,0.00022465,2]
[312162413,1705674659415,-500.0,0.00022465,2]
[312162414,1705674659424,-500.0,0.00022465,2]
[312162415,1705674659433,-500.0,0.00022465,2]
[312162416,1705674659443,-500.0,0.00022465,2]
[312162417,1705674659452,-500.0,0.00022465,2]
[312162418,1705674659462,-737.83,0.00022465,2]
[312162419,1705674659471,-500.0,0.00022465,2]
[312162420,1705674659483,-500.0,0.00022465,2]
[312162421,1705674659492,-500.0,0.00022465,2]
[312162422,1705674659501,-1372.6,0.00022465,2]
[312162423,1705674659510,-500.0,0.00022465,2]
[312162424,1705674659520,-500.0,0.00022465,2]
[312162425,1705674659529,-500.0,0.00022465,2]
[312162426,1705674659538,-500.0,0.00022465,2]
[312162427,1705674659548,-500.0,0.00022465,2]
[312162428,1705674659557,-560.24,0.00022465,2]
[312162429,1705674659567,-910.01,0.00022465,2]
[312162430,1705674659577,-622.13,0.00022465,2]
[312162431,1705674659587,-923.43,0.00022465,2]
[312162432,1705674659596,-500.0,0.00022465,2]
[312162433,1705674659606,-1039.82,0.00022465,2]
[312162434,1705674659616,-725.5,0.00022465,2]
[312162435,1705674659626,-550.84,0.00022465,2]
[312162436,1705674659636,-500.0,0.00022465,2]
[312162437,1705674659647,-258.44,0.00022465,2]
[312162438,1705674659657,-500.0,0.00022465,2]
[312162439,1705674659666,-881.4,0.00022465,2]
[312162440,1705674659676,-774.84,0.00022465,2]
[312162441,1705674659686,-500.0,0.00022465,2]
[312162442,1705674659697,-500.0,0.00022465,2]
[312162443,1705674659706,-500.0,0.00022465,2]
[312162444,1705674659716,-500.0,0.00022465,2]
[312162445,1705674659728,-586.22,0.00022465,2]
[312162446,1705674659739,-534.43,0.00022465,2]
[312162447,1705674659748,-636.62,0.00022465,2]
[312162448,1705674659758,-500.0,0.00022465,2]
[312162449,1705674659769,-713.47,0.00022465,2]
[312162450,1705674659778,-959.84,0.00022465,2]
[312162451,1705674659788,-500.0,0.00022465,2]
[312162452,1705674659798,-500.0,0.00022465,2]
[312162453,1705674659808,-578.16,0.00022465,2]
[312162454,1705674659818,-500.0,0.00022465,2]
[312162455,1705674659828,-500.0,0.00022465,2]
[312162456,1705674659837,-500.0,0.00022465,2]
[312162457,1705674659847,-500.0,0.00022465,2]
[312162458,1705674659857,-500.0,0.00022465,2]
[312162459,1705674659866,-999.09,0.00022465,2]
[312162460,1705674659877,-500.0,0.00022465,2]
[312162461,1705674659886,-500.0,0.00022465,2]
[312162462,1705674659896,-500.0,0.00022465,2]
[312162463,1705674659906,-682.87,0.00022465,2]
[312162464,1705674659916,-915.17,0.00022465,2]
[312162465,1705674659924,-565.49,0.00022465,2]
[312162466,1705674659934,-500.0,0.00022465,2]
[312162467,1705674659944,-592.67,0.00022465,2]
[312162468,1705674659953,-500.0,0.00022465,2]
[312162469,1705674659962,-500.0,0.00022465,2]
[312162470,1705674659972,-500.0,0.00022465,2]
[312162471,1705674659983,-500.0,0.00022465,7]
[312162472,1705674659994,-500.0,0.00022465,2]
[312162473,1705674660003,-500.0,0.00022465,2]
[312162474,1705674660013,-500.0,0.00022465,2]
[312162475,1705674660023,-500.0,0.00022465,2]
[312162476,1705674660033,-525.86625202,0.00022465,2]
[312162477,1705674660043,-661.07,0.00022465,2]
[312162478,1705674660053,-621.88,0.00022465,2]
[312162479,1705674660063,-500.0,0.00022465,2]
[312162480,1705674660074,-658.77,0.00022465,2]
[312162481,1705674660084,-814.59,0.00022465,2]
[312162482,1705674660093,-620.1,0.00022465,2]
[312162483,1705674660103,-500.0,0.00022465,2]
[312162484,1705674660112,-500.0,0.00022465,2]
[312162485,1705674660121,-500.0,0.00022465,2]
[312162486,1705674660131,-1051.71,0.00022465,2]
[312162487,1705674660140,-500.0,0.00022465,2]
[312162488,1705674660150,-507.26,0.00022465,2]
[312162489,1705674660159,-1871.07,0.00022465,2]
[312162490,1705674660168,-1122.09,0.00022465,2]
[312162491,1705674660178,-500.0,0.00022465,2]
[312162492,1705674660188,-500.0,0.00022465,2]
[312162493,1705674660198,-1073.38,0.00022465,2]
[312162494,1705674660207,-500.0,0.00022465,2]
[312162495,1705674660217,-681.46,0.00022465,2]
[312162496,1705674660229,-609.04,0.00022465,2]
[312162497,1705674660239,-161.39289697,0.00022465,2]
[312162498,1705674660248,-500.0,0.00022465,2]
[312162499,1705674660258,-500.0,0.00022465,2]
[312162500,1705674660268,-500.0,0.00022465,2]
[312162501,1705674660277,-500.0,0.00022465,2]
[312162502,1705674660287,-684.05,0.00022465,2]
[312162503,1705674660297,-891.26,0.00022465,2]
[312162504,1705674660306,-536.25,0.00022465,2]
[312162505,1705674660316,-602.54997364,0.00022465,2]
[312162506,1705674660325,-500.0,0.00022465,2]
[312162507,1705674660336,-500.0,0.00022465,2]
[312162508,1705674660345,-500.0,0.00022465,2]
[312162509,1705674660355,-921.86,0.00022465,2]
[312162510,1705674660365,-548.46,0.00022465,2]
[312162511,1705674660374,-500.0,0.00022465,2]
[312162512,1705674660384,-718.86,0.00022465,2]
[312162513,1705674660394,-514.23,0.00022465,2]
[312162514,1705674660403,-759.76,0.00022465,2]
[312162515,1705674660413,-500.0,0.00022465,2]
[312162516,1705674660422,-581.17,0.00022465,2]
[312162517,1705674660431,-500.0,0.00022465,2]
[312162518,1705674660441,-579.17,0.00022465,2]
[312162519,1705674660451,-500.0,0.00022465,2]
[312162520,1705674660460,-500.0,0.00022465,2]
[312162521,1705674660470,-899.48,0.00022465,2]
[312162522,1705674660482,-500.0,0.00022465,2]
[312162523,1705674660491,-520.46,0.00022465,2]
[312162524,1705674660501,-564.45,0.00022465,2]
[312162525,1705674660511,-500.0,0.00022465,2]
[312162526,1705674660521,-1056.49,0.00022465,2]
[312162527,1705674660530,-539.4,0.00022465,2]
[312162528,1705674660539,-525.71,0.00022465,2]
[312162529,1705674660549,-468.47562814,0.00022465,2]
[312162530,1705674660559,-500.0,0.00022465,2]
[312162531,1705674660569,-1035.53,0.00022465,2]
[312162532,1705674660580,-950.46,0.00022465,2]
[312162533,1705674660590,-500.0,0.00022465,2]
[312162534,1705674660600,-841.77,0.00022465,2]
[312162535,1705674660610,-1004.01,0.00022465,2]
[312162536,1705674660621,-511.72,0.00022465,2]
[312162537,1705674660634,-773.82,0.00022465,2]
[312162538,1705674660648,-500.0,0.00022465,2]
[312162539,1705674660658,-431.21633617,0.00022465,2]
[312162540,1705674660668,-500.0,0.00022465,2]
[312162541,1705674660678,-500.0,0.00022465,2]
[312162542,1705674660687,-807.35,0.00022465,2]
[312162543,1705674660697,-831.13,0.00022465,2]
[312162544,1705674660707,-500.0,0.00022465,2]
[312162545,1705674660717,-500.0,0.00022465,2]
[312162546,1705674660728,-3109.38,0.00022465,2]
[312162547,1705674660738,-896.34,0.00022465,2]
[312162548,1705674660748,-687.96,0.00022465,2]
[312162549,1705674660758,-1114.15,0.00022465,2]
[312162550,1705674660768,-659.78,0.00022465,2]
[312162551,1705674660777,-758.37,0.00022465,2]
[312162552,1705674660787,-500.0,0.00022465,2]
[312162553,1705674660928,-570.22,0.00022465,2]
[312162554,1705674660940,-500.0,0.00022465,2]
[312162555,1705674660950,-500.0,0.00022465,2]
[312162556,1705674660960,-500.0,0.00022465,2]
[312162557,1705674660970,-755.62,0.00022465,2]
[312162558,1705674660981,-509.37272407,0.00022465,2]
[312162559,1705674660991,-1088.69,0.00022465,2]
[312162560,1705674661000,-500.0,0.00022465,2]
[312162561,1705674661011,-2162.24,0.00022465,2]
[312162562,1705674661021,-500.0,0.00022465,2]
[312162563,1705674661030,-500.0,0.00022465,2]
[312162564,1705674661040,-1062.76,0.00022465,2]
[312162565,1705674661050,-612.29,0.00022465,2]
[312162566,1705674661061,-2396.2,0.00022465,2]
[312162567,1705674661071,-500.0,0.00022465,2]
[312162568,1705674661081,-500.0,0.00022465,2]
[312162569,1705674661091,-565.53,0.00022465,2]
[312162570,1705674661101,-668.85,0.00022465,2]
[312162571,1705674661110,-598.83,0.00022465,2]
[312162572,1705674661120,-508.81,0.00022465,2]
[312162573,1705674661129,-1080.49,0.00022465,2]
[312162574,1705674661139,-2041.51,0.00022465,2]
[312162575,1705674661149,-834.41,0.00022465,2]
[312162576,1705674661159,-604.66,0.00022465,2]
[312162577,1705674661169,-794.08,0.00022465,2]
[312162578,1705674661178,-500.0,0.00022465,2]
[312162579,1705674661189,-935.21,0.00022465,2]
[312162580,1705674661199,-942.04,0.00022465,2]
[312162581,1705674661209,-500.0,0.00022465,2]
[312162582,1705674661219,-1596.53,0.00022465,2]
[312162583,1705674661231,-992.82,0.00022465,2]
[312162584,1705674661241,-500.0,0.00022465,2]
[312162585,1705674661251,-841.54,0.00022465,2]
[312162586,1705674661260,-500.0,0.00022465,2]
[312162587,1705674661270,-500.0,0.00022465,2]
[312162588,1705674661281,-500.0,0.00022465,2]
[312162589,1705674661290,-1220.64,0.00022465,2]
[312162590,1705674661301,-907.37,0.00022465,2]
[312162591,1705674661311,-2116.41,0.00022465,2]
[312162592,1705674661322,-500.0,0.00022465,2]
[312162593,1705674661331,-500.0,0.00022465,2]
[312162594,1705674661341,-3104.05,0.00022465,2]
[312162595,1705674661350,-625.97,0.00022465,2]
[312162596,1705674661361,-1045.61,0.00022465,2]
[312162597,1705674661371,-500.0,0.00022465,2]
[312162598,1705674661381,-500.0,0.00022465,2]
[312162599,1705674661391,-500.0,0.00022465,2]
[312162600,1705674661401,-973.18,0.00022465,2]
[312162601,1705674661411,-1342.7,0.00022465,2]
[312162602,1705674661421,-500.0,0.00022465,2]
[312162603,1705674661432,-500.0,0.00022465,2]
[312162604,1705674661443,-1590.89,0.00022465,2]
[312162605,1705674661453,-500.0,0.00022465,2]
[312162606,1705674661463,-774.58,0.00022465,2]
[312162607,1705674661474,-925.53,0.00022465,2]
[312162608,1705674661486,-854.66,0.00022465,2]
[312162609,1705674661496,-834.36,0.00022465,2]
[312162610,1705674661507,-500.0,0.00022465,2]
[312162611,1705674661517,-500.0,0.00022465,2]
[312162612,1705674661528,-213.82,0.00022465,2]
[312162613,1705674661538,-1485.93,0.00022465,2]
[312162614,1705674661549,-222.65509593,0.00022465,2]
[312162615,1705674661564,-1774.31,0.00022465,2]
[312162616,1705674661575,-500.0,0.00022465,2]
[312162617,1705674661586,-500.0,0.00022465,2]
[312162618,1705674661597,-2260.08,0.00022465,2]
[312162619,1705674661608,-584.48,0.00022465,2]
[312162620,1705674661618,-1527.06,0.00022465,2]
[312162621,1705674661632,-500.0,0.00022465,2]
[312162622,1705674661642,-804.55,0.00022465,2]
[312162623,1705674661652,-648.29,0.00022465,2]
[312162624,1705674661662,-1390.89,0.00022465,2]
[312162625,1705674661673,-500.0,0.00022465,2]
[312162626,1705674661683,-1877.21,0.00022465,2]
[312162627,1705674661695,-500.0,0.00022465,5]
[312162628,1705674661706,-500.0,0.00022465,2]
[312162629,1705674661718,-900.94,0.00022465,2]
[312162630,1705674661731,-3022.81,0.00022465,2]
[312162631,1705674661742,-1574.26,0.00022465,2]
[312162632,1705674661752,-500.0,0.00022465,2]
[312162633,1705674661762,-500.0,0.00022465,2]
[312162634,1705674661774,-500.0,0.00022465,2]
[312162635,1705674661784,-6093.79,0.00022465,2]
[312162636,1705674661795,-500.0,0.00022465,2]
[312162637,1705674661805,-652.23,0.00022465,2]
[312162638,1705674661816,-1118.13,0.00022465,2]
[312162639,1705674661826,-502.55,0.00022465,2]
[312162640,1705674661837,-1115.85,0.00022465,2]
[312162641,1705674661847,-500.0,0.00022465,2]
[312162642,1705674661857,-2563.91,0.00022465,2]
[312162643,1705674661867,-2341.41,0.00022465,2]
[312162644,1705674661877,-500.0,0.00022465,2]
[312162645,1705674661888,-810.7,0.00022465,2]
[312162646,1705674661898,-500.0,0.00022465,2]
[312162647,1705674661909,-2005.36,0.00022465,2]
[312162648,1705674661920,-602.05,0.00022465,2]
[312162649,1705674661930,-500.0,0.00022465,2]
[312162650,1705674661940,-1103.28,0.00022465,2]
[312162651,1705674661950,-500.0,0.00022465,2]
[312162652,1705674661961,-707.49,0.00022465,2]
[312162653,1705674661970,-500.0,0.00022465,2]
[312162654,1705674661981,-581.35,0.00022465,2]
[312162655,1705674661991,-3924.46,0.00022465,2]
[312162656,1705674662001,-500.0,0.00022465,2]
[312162657,1705674662011,-500.0,0.00022465,2]
[312162658,1705674662022,-563.69,0.00022465,2]
[312162659,1705674662032,-500.0,0.00022465,2]
[312162660,1705674662042,-8501.89,0.00022465,2]
[312162661,1705674662052,-500.0,0.00022465,2]
[312162662,1705674662062,-527.48,0.00022465,2]
[312162663,1705674662071,-500.0,0.00022465,2]
[312162664,1705674662082,-500.0,0.00022465,2]
[312162665,1705674662092,-878.75,0.00022465,2]
[312162666,1705674662101,-3091.25,0.00022465,2]
[312162667,1705674662111,-500.0,0.00022465,2]
[312162668,1705674662121,-500.0,0.00022465,2]
[312162669,1705674662130,-500.0,0.00022465,2]
[312162670,1705674662140,-10664.33,0.00022465,2]
[312162671,1705674662150,-500.0,0.00022465,2]
[312162672,1705674662159,-1693.3,0.00022465,2]
[312162673,1705674662169,-1585.15,0.00022465,2]
[312162674,1705674662179,-900.55,0.00022465,2]
[312162675,1705674662189,-1277.56,0.00022465,2]
[312162676,1705674662199,-1114.75,0.00022465,2]
[312162677,1705674662209,-991.98,0.00022465,2]
[312162678,1705674662220,-854.63,0.00022465,2]
[312162679,1705674662231,-533.58,0.00022465,2]
[312162680,1705674662241,-6410.9,0.00022465,2]
[312162681,1705674662252,-918.55,0.00022465,2]
[312162682,1705674662263,-5442.28,0.00022465,2]
[312162683,1705674662274,-500.0,0.00022465,2]
[312162684,1705674662284,-500.0,0.00022465,2]
[312162685,1705674662294,-1784.06,0.00022465,2]
[312162686,1705674662305,-523.42,0.00022465,2]
[312162687,1705674662316,-875.49,0.00022465,2]
[312162688,1705674662326,-606.49,0.00022465,2]
[312162689,1705674662337,-1009.22,0.00022465,2]
[312162690,1705674662348,-500.0,0.00022465,2]
[312162691,1705674662358,-693.07,0.00022465,2]
[312162692,1705674662369,-511.36,0.00022465,2]
[312162693,1705674662379,-554.95,0.00022465,2]
[312162694,1705674662390,-2140.41,0.00022465,2]
[312162695,1705674662400,-500.0,0.00022465,2]
[312162696,1705674662411,-500.0,0.00022465,2]
[312162697,1705674662422,-3585.07,0.00022465,2]
[312162698,1705674662433,-642.37,0.00022465,2]
[312162699,1705674662444,-2571.91,0.00022465,2]
[312162700,1705674662455,-713.94,0.00022465,2]
[312162701,1705674662466,-816.86,0.00022465,2]
[312162702,1705674662477,-1520.09,0.00022465,2]
[312162703,1705674662490,-2957.01,0.00022465,2]
[312162704,1705674662501,-3111.27,0.00022465,2]
[312162705,1705674662511,-1247.06,0.00022465,2]
[312162706,1705674662522,-2470.98,0.00022465,2]
[312162707,1705674662532,-877.17,0.00022465,2]
[312162708,1705674662542,-16108.31,0.00022465,2]
[312162709,1705674662553,-1420.38,0.00022465,2]
[312162710,1705674662563,-500.0,0.00022465,2]
[312162711,1705674662574,-5889.58,0.00022465,2]
[312162712,1705674662585,-500.0,0.00022465,2]
[312162713,1705674662595,-1031.15,0.00022465,2]
[312162714,1705674662606,-24836.08,0.00022465,2]
[312162715,1705674662617,-500.0,0.00022465,2]
[312162716,1705674662627,-500.0,0.00022465,2]
[312162717,1705674662641,-525.39,0.00022465,2]
[312162718,1705674662651,-500.0,0.00022465,2]
[312162719,1705674662661,-1007.94,0.00022465,2]
[312162720,1705674662672,-621.8,0.00022465,2]
[312162721,1705674662683,-500.0,0.00022465,2]
[312162722,1705674662694,-12531.28,0.00022465,2]
[312162723,1705674662705,-500.0,0.00022465,2]
[312162724,1705674662716,-301.31,0.00022465,2]
[312162725,1705674662728,-381.3,0.00022465,2]
[312162726,1705674662739,-1705.83,0.00022465,2]
[312162727,1705674662750,-557.18,0.00022465,2]
[312162728,1705674662760,-500.0,0.00022465,2]
[312162729,1705674662771,-652.5,0.00022465,2]
[312162730,1705674662781,-1703.36,0.00022465,2]
[312162731,1705674662791,-1441.36,0.00022465,2]
[312162732,1705674662801,-2408.12,0.00022465,2]
[312162733,1705674662812,-727.24,0.00022465,2]
[312162734,1705674662823,-500.0,0.00022465,2]
[312162735,1705674662833,-1152.24,0.00022465,2]
[312162736,1705674662843,-1113.26,0.00022465,2]
[312162737,1705674662853,-500.0,0.00022465,2]
[312162738,1705674662863,-1962.06,0.00022465,2]
[312162739,1705674662873,-573.79,0.00022465,2]
[312162740,1705674662883,-11423.78,0.00022465,2]
[312162741,1705674662893,-4066.04,0.00022465,2]
[312162742,1705674662904,-522.52,0.00022465,2]
[312162743,1705674662914,-500.0,0.00022465,2]
[312162744,1705674662924,-847.61,0.00022465,2]
[312162745,1705674662934,-2220.98,0.00022465,2]
[312162746,1705674662944,-942.58,0.00022465,2]
[312162747,1705674662954,-6566.67,0.00022465,2]
[312162748,1705674662964,-934.08,0.00022465,2]
[312162749,1705674662974,-814.47,0.00022465,2]
[312162750,1705674662987,-800.9,0.00022465,2]
[312162751,1705674662997,-1493.53,0.00022465,2]
[312162752,1705674663007,-823.98,0.00022465,2]
[312162753,1705674663017,-202.00190623,0.00022465,2]
[312162754,1705674663028,-500.0,0.00022465,2]
[312162755,1705674663042,-500.0,0.00022465,2]
[312162756,1705674663052,-509.76,0.00022465,2]
[312162757,1705674663062,-1278.96,0.00022465,2]
[312162758,1705674663072,-3770.64,0.00022465,2]
[312162759,1705674663082,-500.0,0.00022465,2]
[312162760,1705674663093,-956.94,0.00022465,2]
[312162761,1705674663103,-1348.79,0.00022465,2]
[312162762,1705674663112,-1356.35,0.00022465,2]
[312162763,1705674663122,-2516.93,0.00022465,2]
[312162764,1705674663133,-773.29,0.00022465,2]
[312162765,1705674663143,-608.82,0.00022465,2]
[312162766,1705674663153,-500.0,0.00022465,2]
[312162767,1705674663163,-2842.24,0.00022465,2]
[312162768,1705674663173,-500.0,0.00022465,2]
[312162769,1705674663183,-602.48,0.00022465,2]
[312162770,1705674663590,-500.0,0.00022465,2]
[312162771,1705674663602,-500.0,0.00022465,2]
[312162772,1705674663613,-1084.04,0.00022465,2]
[312162773,1705674663623,-2750.19,0.00022465,2]
[312162774,1705674663634,-624.79,0.00022465,2]
[312162775,1705674663647,-863.67,0.00022465,2]
[312162776,1705674663657,-1392.15,0.00022465,2]
[312162777,1705674663667,-977.84,0.00022465,2]
[312162778,1705674663678,-511.75,0.00022465,2]
[312162779,1705674663688,-816.57,0.00022465,2]
[312162780,1705674663699,-1716.1,0.00022465,2]
[312162781,1705674663709,-564.75,0.00022465,2]
[312162782,1705674663719,-1306.13,0.00022465,2]
[312162783,1705674663731,-1125.65,0.00022465,2]
[312162784,1705674663741,-1422.11,0.00022465,2]
[312162785,1705674663752,-1831.27,0.00022465,2]
[312162786,1705674663762,-500.0,0.00022465,2]
[312162787,1705674663772,-894.49,0.00022465,2]
[312162788,1705674663783,-717.76,0.00022465,2]
[312162789,1705674663793,-611.36,0.00022465,2]
[312162790,1705674663804,-1447.39,0.00022465,2]
[312162791,1705674663814,-2948.08,0.00022465,2]
[312162792,1705674663824,-717.83,0.00022465,2]
[312162793,1705674663835,-695.07,0.00022465,2]
[312162794,1705674663845,-754.58,0.00022465,2]
[312162795,1705674663855,-16488.48,0.00022465,2]
[312162796,1705674663866,-3021.97,0.00022465,2]
[312162797,1705674663876,-3427.8,0.00022465,2]
[312162798,1705674663886,-2131.71,0.00022465,2]
[312162799,1705674663897,-500.0,0.00022465,2]
[312162800,1705674663907,-500.0,0.00022465,2]
[312162801,1705674663918,-1009.99,0.00022465,2]
[312162802,1705674663929,-956.0,0.00022465,2]
[312162803,1705674663939,-1506.86,0.00022465,2]
[312162804,1705674663950,-500.0,0.00022465,2]
[312162805,1705674663960,-500.0,0.00022465,2]
[312162806,1705674663970,-1637.62,0.00022465,2]
[312162807,1705674663982,-1201.83,0.00022465,2]
[312162808,1705674663993,-637.98,0.00022465,2]
[312162809,1705674664003,-3998.36,0.00022465,2]
[312162810,1705674664013,-1599.66,0.00022465,2]
[312162811,1705674664023,-1400.83,0.00022465,2]
[312162812,1705674664033,-500.0,0.00022465,2]
[312162813,1705674664043,-500.0,0.00022465,2]
[312162814,1705674664053,-1422.3,0.00022465,2]
[312162815,1705674664063,-924.53,0.00022465,2]
[312162816,1705674664073,-17849.03,0.00022465,2]
[312162817,1705674664083,-995.96,0.00022465,2]
[312162818,1705674664093,-3330.51,0.00022465,2]
[312162819,1705674664103,-905.92,0.00022465,2]
[312162820,1705674664113,-1401.15,0.00022465,2]
[312162821,1705674664123,-500.0,0.00022465,2]
[312162822,1705674664134,-500.0,0.00022465,2]
[312162823,1705674664144,-1383.55,0.00022465,2]
[312162824,1705674664154,-1506.65,0.00022465,2]